fUSD/lending_fUSD_20260525
["ID","MTS","AMOUNT","RATE_DAILY","PERIOD"]
[422950082,1779667858000,-151.0,0.00032877,7]
[422950081,1779667858000,-151.0,0.00032877,7]
[422950071,1779667858000,-151.0,0.00032877,7]
[422950072,1779667858000,-151.0,0.00032877,7]
[422950073,1779667858000,-151.0,0.00032877,7]
[422950070,1779667858000,-151.0,0.00032877,7]
[422950074,1779667858000,-151.0,0.00032877,7]
[422950120,1779667858000,-151.0,0.00032877,7]
[422950145,1779667858000,-151.0,0.00032877,7]
[422950121,1779667858000,-833.317687,0.00032877,7]
[422950138,1779667858000,-151.0,0.00032877,7]
[422950157,1779667858000,-151.0,0.00032877,7]
[422950147,1779667858000,-151.0,0.00032877,7]
[422950146,1779667858000,-288.552465,0.00032877,7]
[422950150,1779667858000,-151.0,0.00032877,7]
[422950151,1779667858000,-151.0,0.00032877,7]
[422950155,1779667858000,-151.0,0.00032877,7]
[422950158,1779667858000,-151.0,0.00032877,7]
[422950149,1779667858000,-151.0,0.00032877,7]
[422950156,1779667858000,-151.0,0.00032877,7]
[422950154,1779667858000,-151.0,0.00032877,7]
[422950153,1779667858000,-151.0,0.00032877,7]
[422950148,1779667858000,-151.0,0.00032877,7]
[422950152,1779667858000,-151.0,0.00032877,7]
[422950160,1779667858000,-151.0,0.00032877,7]
[422950159,1779667858000,-151.0,0.00032877,7]
[422950161,1779667858000,-151.0,0.00032877,7]
[422950171,1779667858000,-151.0,0.00032877,7]
[422950162,1779667858000,-151.0,0.00032877,7]
[422950170,1779667858000,-151.0,0.00032877,7]
[422950163,1779667858000,-151.0,0.00032877,7]
[422950164,1779667858000,-151.0,0.00032877,7]
[422950165,1779667858000,-151.0,0.00032877,7]
[422950166,1779667858000,-151.0,0.00032877,7]
[422950168,1779667858000,-151.0,0.00032877,7]
[422950169,1779667858000,-151.0,0.00032877,7]
[422950174,1779667858000,-594.417423,0.00032877,7]
[422950173,1779667858000,-151.0,0.00032877,7]
[422950110,1779667858000,-833.317687,0.00032877,7]
[422950139,1779667858000,-833.317687,0.00032877,7]
[422950143,1779667858000,-151.0,0.00032877,7]
[422950167,1779667858000,-151.0,0.00032877,7]
[422950142,1779667858000,-151.0,0.00032877,7]
[422950141,1779667858000,-833.317686,0.00032877,7]
[422950111,1779667858000,-833.317687,0.00032877,7]
[422950109,1779667858000,-833.317687,0.00032877,7]
[422950116,1779667858000,-151.0,0.00032877,7]
[422950113,1779667858000,-833.317687,0.00032877,7]
[422950114,1779667858000,-151.0,0.00032877,7]
[422950115,1779667858000,-833.317687,0.00032877,7]
[422950112,1779667858000,-833.317687,0.00032877,7]
[422950118,1779667858000,-151.0,0.00032877,7]
[422950119,1779667858000,-833.317687,0.00032877,7]
[422950122,1779667858000,-151.0,0.00032877,7]
[422950123,1779667858000,-151.0,0.00032877,7]
[422950126,1779667858000,-151.0,0.00032877,7]
[422950124,1779667858000,-151.0,0.00032877,7]
[422950117,1779667858000,-833.317687,0.00032877,7]
[422950125,1779667858000,-833.317687,0.00032877,7]
[422950128,1779667858000,-151.0,0.00032877,7]
[422950144,1779667858000,-151.0,0.00032877,7]
[422950133,1779667858000,-833.317687,0.00032877,7]
[422950140,1779667858000,-151.0,0.00032877,7]
[422950136,1779667858000,-151.0,0.00032877,7]
[422950172,1779667858000,-151.0,0.00032877,7]
[422950135,1779667858000,-833.317687,0.00032877,7]
[422950134,1779667858000,-151.0,0.00032877,7]
[422950132,1779667858000,-151.0,0.00032877,7]
[422950127,1779667858000,-833.317687,0.00032877,7]
[422950130,1779667858000,-151.0,0.00032877,7]
[422950129,1779667858000,-833.317687,0.00032877,7]
[422950137,1779667858000,-833.317687,0.00032877,7]
[422950131,1779667858000,-833.317687,0.00032877,7]
[422950202,1779667859000,-194.87868,0.00032877,7]
[422950221,1779667859000,-151.0,0.00032877,7]
[422950210,1779667859000,-151.0,0.00032877,7]
[422950207,1779667859000,-151.0,0.00032877,7]
[422950208,1779667859000,-151.0,0.00032877,7]
[422950204,1779667859000,-151.0,0.00032877,7]
[422950205,1779667859000,-151.0,0.00032877,7]
[422950201,1779667859000,-151.0,0.00032877,7]
[422950198,1779667859000,-151.0,0.00032877,7]
[422950206,1779667859000,-151.0,0.00032877,7]
[422950220,1779667859000,-503.628241,0.00032877,7]
[422950214,1779667859000,-503.628241,0.00032877,7]
[422950219,1779667859000,-151.0,0.00032877,7]
[422950218,1779667859000,-503.628241,0.00032877,7]
[422950213,1779667859000,-503.628241,0.00032877,7]
[422950215,1779667859000,-503.628241,0.00032877,7]
[422950212,1779667859000,-151.0,0.00032877,7]
[422950217,1779667859000,-151.0,0.00032877,7]
[422950216,1779667859000,-503.628241,0.00032877,7]
[422950223,1779667859000,-151.0,0.00032877,7]
[422950203,1779667859000,-151.0,0.00032877,7]
[422950222,1779667859000,-503.628241,0.00032877,7]
[422950211,1779667859000,-151.0,0.00032877,7]
[422950200,1779667859000,-151.0,0.00032877,7]
[422950176,1779667859000,-594.417423,0.00032877,7]
[422950199,1779667859000,-594.417416,0.00032877,7]
[422950234,1779667859000,-503.628241,0.00032877,7]
[422950182,1779667859000,-594.417423,0.00032877,7]
[422950180,1779667859000,-594.417423,0.00032877,7]
[422950183,1779667859000,-594.417423,0.00032877,7]
[422950184,1779667859000,-594.417423,0.00032877,7]
[422950178,1779667859000,-594.417423,0.00032877,7]
[422950175,1779667859000,-210.75385583,0.00032877,7]
[422950177,1779667859000,-594.417423,0.00032877,7]
[422950181,1779667859000,-594.417423,0.00032877,7]
[422950179,1779667859000,-594.417423,0.00032877,7]
[422950186,1779667859000,-594.417423,0.00032877,7]
[422950196,1779667859000,-151.0,0.00032877,7]
[422950197,1779667859000,-594.417423,0.00032877,7]
[422950185,1779667859000,-594.417423,0.00032877,7]
[422950187,1779667859000,-594.417423,0.00032877,7]
[422950190,1779667859000,-594.417423,0.00032877,7]
[422950191,1779667859000,-594.417423,0.00032877,7]
[422950192,1779667859000,-151.0,0.00032877,7]
[422950195,1779667859000,-594.417423,0.00032877,7]
[422950194,1779667859000,-151.0,0.00032877,7]
[422950189,1779667859000,-151.0,0.00032877,7]
[422950188,1779667859000,-594.417423,0.00032877,7]
[422950193,1779667859000,-594.417423,0.00032877,7]
[422950209,1779667859000,-151.0,0.00032877,7]
[422950233,1779667859000,-503.628241,0.00032877,7]
[422950245,1779667859000,-151.0,0.00032877,7]
[422950226,1779667859000,-503.628241,0.00032877,7]
[422950254,1779667859000,-151.0,0.00032877,7]
[422950257,1779667859000,-151.0,0.00032877,7]
[422950256,1779667859000,-151.0,0.00032877,7]
[422950259,1779667859000,-151.0,0.00032877,7]
[422950258,1779667859000,-151.0,0.00032877,7]
[422950260,1779667859000,-151.0,0.00032877,7]
[422950261,1779667859000,-151.0,0.00032877,7]
[422950270,1779667859000,-151.0,0.00032877,7]
[422950262,1779667859000,-151.0,0.00032877,7]
[422950263,1779667859000,-151.0,0.00032877,7]
[422950269,1779667859000,-151.0,0.00032877,7]
[422950268,1779667859000,-151.0,0.00032877,7]
[422950264,1779667859000,-151.0,0.00032877,7]
[422950266,1779667859000,-151.0,0.00032877,7]
[422950267,1779667859000,-151.0,0.00032877,7]
[422950265,1779667859000,-151.0,0.00032877,7]
[422950224,1779667859000,-503.628241,0.00032877,7]
[422950272,1779667859000,-151.0,0.00032877,7]
[422950275,1779667859000,-151.0,0.00032877,7]
[422950274,1779667859000,-151.0,0.00032877,7]
[422950273,1779667859000,-151.0,0.00032877,7]
[422950276,1779667859000,-151.0,0.00032877,7]
[422950277,1779667859000,-158.275721,0.00032877,7]
[422950253,1779667859000,-151.0,0.00032877,7]
[422950255,1779667859000,-151.0,0.00032877,7]
[422950271,1779667859000,-151.0,0.00032877,7]
[422950252,1779667859000,-151.0,0.00032877,7]
[422950227,1779667859000,-151.0,0.00032877,7]
[422950250,1779667859000,-151.0,0.00032877,7]
[422950231,1779667859000,-165.908021,0.00032877,7]
[422950225,1779667859000,-151.0,0.00032877,7]
[422950229,1779667859000,-151.0,0.00032877,7]
[422950232,1779667859000,-503.628241,0.00032877,7]
[422950228,1779667859000,-503.628241,0.00032877,7]
[422950236,1779667859000,-151.0,0.00032877,7]
[422950246,1779667859000,-151.0,0.00032877,7]
[422950244,1779667859000,-503.628241,0.00032877,7]
[422950235,1779667859000,-503.628241,0.00032877,7]
[422950230,1779667859000,-503.628241,0.00032877,7]
[422950247,1779667859000,-503.628236,0.00032877,7]
[422950238,1779667859000,-151.0,0.00032877,7]
[422950239,1779667859000,-503.628241,0.00032877,7]
[422950243,1779667859000,-151.0,0.00032877,7]
[422950241,1779667859000,-503.628241,0.00032877,7]
[422950242,1779667859000,-151.0,0.00032877,7]
[422950240,1779667859000,-151.0,0.00032877,7]
[422950248,1779667859000,-151.0,0.00032877,7]
[422950251,1779667859000,-151.0,0.00032877,7]
[422950237,1779667859000,-503.628241,0.00032877,7]
[422950249,1779667859000,-151.0,0.00032877,7]
[422950304,1779667860000,-151.0,0.00032877,7]
[422950303,1779667860000,-151.0,0.00032877,7]
[422950313,1779667860000,-530.336506,0.00032877,7]
[422950301,1779667860000,-151.0,0.00032877,7]
[422950300,1779667860000,-151.0,0.00032877,7]
[422950297,1779667860000,-151.0,0.00032877,7]
[422950302,1779667860000,-151.0,0.00032877,7]
[422950305,1779667860000,-151.0,0.00032877,7]
[422950311,1779667860000,-530.336506,0.00032877,7]
[422950306,1779667860000,-151.0,0.00032877,7]
[422950309,1779667860000,-151.0,0.00032877,7]
[422950310,1779667860000,-151.0,0.00032877,7]
[422950308,1779667860000,-151.0,0.00032877,7]
[422950312,1779667860000,-151.0,0.00032877,7]
[422950319,1779667860000,-151.0,0.00032877,7]
[422950298,1779667860000,-151.0,0.00032877,7]
[422950307,1779667860000,-213.743711,0.00032877,7]
[422950299,1779667860000,-151.0,0.00032877,7]
[422950284,1779667860000,-300.565521,0.00032877,7]
[422950294,1779667860000,-151.0,0.00032877,7]
[422950318,1779667860000,-530.336506,0.00032877,7]
[422950278,1779667860000,-151.0,0.00032877,7]
[422950283,1779667860000,-151.0,0.00032877,7]
[422950282,1779667860000,-151.0,0.00032877,7]
[422950280,1779667860000,-151.0,0.00032877,7]
[422950281,1779667860000,-151.0,0.00032877,7]
[422950279,1779667860000,-151.0,0.00032877,7]
[422950296,1779667860000,-151.0,0.00032877,7]
[422950285,1779667860000,-151.0,0.00032877,7]
[422950293,1779667860000,-151.0,0.00032877,7]
[422950290,1779667860000,-151.0,0.00032877,7]
[422950291,1779667860000,-151.0,0.00032877,7]
[422950286,1779667860000,-151.0,0.00032877,7]
[422950287,1779667860000,-151.0,0.00032877,7]
[422950289,1779667860000,-162.062033,0.00032877,7]
[422950295,1779667860000,-151.0,0.00032877,7]
[422950292,1779667860000,-151.0,0.00032877,7]
[422950314,1779667860000,-151.0,0.00032877,7]
[422950288,1779667860000,-151.0,0.00032877,7]
[422950317,1779667860000,-151.0,0.00032877,7]
[422950341,1779667860000,-530.336506,0.00032877,7]
[422950342,1779667860000,-530.336506,0.00032877,7]
[422950340,1779667860000,-266.444111,0.00032877,7]
[422950343,1779667860000,-530.336506,0.00032877,7]
[422950345,1779667860000,-530.336504,0.00032877,7]
[422950346,1779667860000,-151.0,0.00032877,7]
[422950344,1779667860000,-530.336506,0.00032877,7]
[422950347,1779667860000,-151.0,0.00032877,7]
[422950356,1779667860000,-151.0,0.00032877,7]
[422950355,1779667860000,-151.0,0.00032877,7]
[422950348,1779667860000,-151.0,0.00032877,7]
[422950351,1779667860000,-151.0,0.00032877,7]
[422950354,1779667860000,-248.533282,0.00032877,7]
[422950353,1779667860000,-151.0,0.00032877,7]
[422950352,1779667860000,-151.0,0.00032877,7]
[422950350,1779667860000,-151.0,0.00032877,7]
[422950316,1779667860000,-530.336506,0.00032877,7]
[422950338,1779667860000,-151.0,0.00032877,7]
[422950339,1779667860000,-530.336506,0.00032877,7]
[422950349,1779667860000,-151.0,0.00032877,7]
[422950335,1779667860000,-530.336506,0.00032877,7]
[422950315,1779667860000,-530.336506,0.00032877,7]
[422950337,1779667860000,-530.336506,0.00032877,7]
[422950321,1779667860000,-151.0,0.00032877,7]
[422950322,1779667860000,-151.0,0.00032877,7]
[422950320,1779667860000,-530.336506,0.00032877,7]
[422950324,1779667860000,-151.0,0.00032877,7]
[422950328,1779667860000,-151.0,0.00032877,7]
[422950325,1779667860000,-530.336506,0.00032877,7]
[422950329,1779667860000,-530.336506,0.00032877,7]
[422950323,1779667860000,-530.336506,0.00032877,7]
[422950327,1779667860000,-530.336506,0.00032877,7]
[422950326,1779667860000,-151.0,0.00032877,7]
[422950332,1779667860000,-151.0,0.00032877,7]
[422950330,1779667860000,-151.0,0.00032877,7]
[422950336,1779667860000,-151.0,0.00032877,7]
[422950333,1779667860000,-530.336506,0.00032877,7]
[422950331,1779667860000,-530.336506,0.00032877,7]
[422950334,1779667860000,-151.0,0.00032877,7]
[422950388,1779667861000,-151.0,0.00032877,7]
[422950393,1779667861000,-712.175493,0.00032877,7]
[422950391,1779667861000,-712.175493,0.00032877,7]
[422950386,1779667861000,-151.0,0.00032877,7]
[422950385,1779667861000,-712.175493,0.00032877,7]
[422950382,1779667861000,-151.0,0.00032877,7]
[422950383,1779667861000,-712.175493,0.00032877,7]
[422950390,1779667861000,-151.0,0.00032877,7]
[422950389,1779667861000,-712.175493,0.00032877,7]
[422950387,1779667861000,-712.175493,0.00032877,7]
[422950404,1779667861000,-199.216907,0.00032877,7]
[422950394,1779667861000,-151.0,0.00032877,7]
[422950397,1779667861000,-151.0,0.00032877,7]
[422950396,1779667861000,-712.175496,0.00032877,7]
[422950395,1779667861000,-151.0,0.00032877,7]
[422950402,1779667861000,-151.0,0.00032877,7]
[422950401,1779667861000,-151.0,0.00032877,7]
[422950400,1779667861000,-151.0,0.00032877,7]
[422950403,1779667861000,-151.0,0.00032877,7]
[422950378,1779667861000,-151.0,0.00032877,7]
[422950392,1779667861000,-151.0,0.00032877,7]
[422950384,1779667861000,-151.0,0.00032877,7]
[422950364,1779667861000,-151.0,0.00032877,7]
[422950380,1779667861000,-151.0,0.00032877,7]
[422950358,1779667861000,-151.0,0.00032877,7]
[422950357,1779667861000,-151.0,0.00032877,7]
[422950359,1779667861000,-246.015341,0.00032877,7]
[422950360,1779667861000,-151.0,0.00032877,7]
[422950399,1779667861000,-151.0,0.00032877,7]
[422950365,1779667861000,-151.0,0.00032877,7]
[422950366,1779667861000,-294.421865,0.00032877,7]
[422950363,1779667861000,-151.0,0.00032877,7]
[422950361,1779667861000,-218.240025,0.00032877,7]
[422950368,1779667861000,-712.175493,0.00032877,7]
[422950369,1779667861000,-712.175493,0.00032877,7]
[422950367,1779667861000,-712.175493,0.00032877,7]
[422950370,1779667861000,-712.175493,0.00032877,7]
[422950371,1779667861000,-712.175493,0.00032877,7]
[422950374,1779667861000,-712.175493,0.00032877,7]
[422950372,1779667861000,-712.175493,0.00032877,7]
[422950373,1779667861000,-712.175493,0.00032877,7]
[422950375,1779667861000,-712.175493,0.00032877,7]
[422950376,1779667861000,-712.175493,0.00032877,7]
[422950377,1779667861000,-712.175493,0.00032877,7]
[422950379,1779667861000,-712.175493,0.00032877,7]
[422950381,1779667861000,-712.175493,0.00032877,7]
[422950398,1779667861000,-151.0,0.00032877,7]
[422950362,1779667861000,-151.0,0.00032877,7]
[422950406,1779667861000,-151.0,0.00032877,7]
[422950434,1779667861000,-500.0,0.00032877,2]
[422950433,1779667861000,-500.0,0.00032877,2]
[422950427,1779667861000,-819.705507,0.00032877,7]
[422950435,1779667861000,-500.0,0.00032877,2]
[422950438,1779667861000,-175.20586195,0.00032877,120]
[422950436,1779667861000,-500.0,0.00032877,2]
[422950442,1779667861000,-494.0,0.00032947,30]
[422950437,1779667861000,-419.59953626,0.00032877,2]
[422950443,1779667861000,-177.0,0.00032947,30]
[422950440,1779667861000,-152.0,0.00032899,5]
[422950439,1779667861000,-265.899999,0.00032892,15]
[422950441,1779667861000,-2000.0,0.000329,120]
[422950444,1779667861000,-153.0,0.00032947,30]
[422950445,1779667861000,-276.722222,0.00032965,15]
[422950446,1779667861000,-276.722222,0.00032965,15]
[422950447,1779667861000,-153.0,0.00032988,30]
[422950449,1779667861000,-162.0,0.00032988,30]
[422950451,1779667861000,-152.0,0.00032988,30]
[422950448,1779667861000,-151.0,0.00032988,30]
[422950450,1779667861000,-395.0,0.00032988,30]
[422950405,1779667861000,-151.0,0.00032877,7]
[422950432,1779667861000,-500.0,0.00032877,2]
[422950431,1779667861000,-5000.0,0.00032877,120]
[422950452,1779667861000,-155.0,0.00032988,30]
[422950428,1779667861000,-819.705507,0.00032877,7]
[422950430,1779667861000,-819.705505,0.00032877,7]
[422950408,1779667861000,-186.536325,0.00032877,7]
[422950410,1779667861000,-819.705507,0.00032877,7]
[422950407,1779667861000,-151.0,0.00032877,7]
[422950414,1779667861000,-819.705507,0.00032877,7]
[422950413,1779667861000,-819.705507,0.00032877,7]
[422950409,1779667861000,-819.705507,0.00032877,7]
[422950411,1779667861000,-819.705507,0.00032877,7]
[422950415,1779667861000,-819.705507,0.00032877,7]
[422950416,1779667861000,-819.705507,0.00032877,7]
[422950412,1779667861000,-819.705507,0.00032877,7]
[422950417,1779667861000,-819.705507,0.00032877,7]
[422950419,1779667861000,-819.705507,0.00032877,7]
[422950425,1779667861000,-151.0,0.00032877,7]
[422950424,1779667861000,-819.705507,0.00032877,7]
[422950423,1779667861000,-151.0,0.00032877,7]
[422950426,1779667861000,-819.705507,0.00032877,7]
[422950418,1779667861000,-819.705507,0.00032877,7]
[422950420,1779667861000,-819.705507,0.00032877,7]
[422950421,1779667861000,-819.705507,0.00032877,7]
[422950422,1779667861000,-819.705507,0.00032877,7]
[422950429,1779667861000,-819.705507,0.00032877,7]
[422950475,1779667862000,-222.795,0.00033057,13]
[422950478,1779667862000,-2305.83,0.000331,10]
[422950474,1779667862000,-221.3825,0.00033057,13]
[422950476,1779667862000,-2305.833,0.000331,30]
[422950477,1779667862000,-2305.833,0.000331,30]
[422950480,1779667862000,-306.523076,0.00033117,16]
[422950479,1779667862000,-200.0,0.000331,2]
[422950481,1779667862000,-1114.41463234,0.0003317,7]
[422950486,1779667862000,-950.00754159,0.00033229,7]
[422950485,1779667862000,-995.93836497,0.0003317,7]
[422950484,1779667862000,-915.61492684,0.0003317,7]
[422950483,1779667862000,-980.03298981,0.0003317,7]
[422950487,1779667862000,-506.0,0.00033246,16]
[422950489,1779667862000,-928.43112611,0.00033255,7]
[422950491,1779667862000,-1027.45189877,0.00033255,7]
[422950472,1779667862000,-2000.0,0.00033,7]
[422950482,1779667862000,-1954.60358724,0.0003317,7]
[422950473,1779667862000,-350.0,0.00033014,5]
[422950461,1779667862000,-38013.8726415,0.00033,3]
[422950470,1779667862000,-418.4518521,0.00033,5]
[422950496,1779667862000,-1013.89068331,0.00033255,7]
[422950453,1779667862000,-435.0,0.00032988,30]
[422950454,1779667862000,-155.0,0.00032988,30]
[422950457,1779667862000,-284.628571,0.00033,15]
[422950456,1779667862000,-151.0,0.00032997,14]
[422950458,1779667862000,-76721.02895072,0.00033,5]
[422950455,1779667862000,-152.0,0.00032988,30]
[422950460,1779667862000,-797.42521035,0.00033,7]
[422950459,1779667862000,-52211.78123188,0.00033,2]
[422950462,1779667862000,-348.920834,0.00033,120]
[422950466,1779667862000,-150.0,0.00033,2]
[422950465,1779667862000,-10000.0,0.00033,9]
[422950464,1779667862000,-14191.84055849,0.00033,2]
[422950463,1779667862000,-4044.0,0.00033,30]
[422950469,1779667862000,-157.69142296,0.00033,120]
[422950467,1779667862000,-150.0,0.00033,2]
[422950471,1779667862000,-572.521771,0.00033,14]
[422950468,1779667862000,-150.0,0.00033,2]
[422950490,1779667862000,-1052.28000543,0.00033255,7]
[422950495,1779667862000,-1971.26364595,0.00033255,7]
[422950492,1779667862000,-1461.99993713,0.00033255,7]
[422950516,1779667862000,-704.61,0.00033974,10]
[422950519,1779667862000,-151.0,0.00033988,30]
[422950517,1779667862000,-427.43,0.00033979,30]
[422950518,1779667862000,-153.0,0.00033988,30]
[422950524,1779667862000,-435.0,0.00033988,30]
[422950520,1779667862000,-162.0,0.00033988,30]
[422950522,1779667862000,-152.0,0.00033988,30]
[422950515,1779667862000,-350.0,0.00033973,5]
[422950523,1779667862000,-155.0,0.00033988,30]
[422950527,1779667862000,-329.20671708,0.00034,3]
[422950526,1779667862000,-152.0,0.00033988,30]
[422950528,1779667862000,-150.0,0.00034002,2]
[422950530,1779667862000,-303.383942,0.00034129,120]
[422950531,1779667862000,-507.4,0.00034182,7]
[422950529,1779667862000,-389.35135126,0.00034081,76]
[422950488,1779667862000,-1132.56681966,0.00033255,7]
[422950525,1779667862000,-155.0,0.00033988,30]
[422950513,1779667862000,-153.0,0.00033947,30]
[422950521,1779667862000,-395.0,0.00033988,30]
[422950514,1779667862000,-10000.0,0.00033956,15]
[422950493,1779667862000,-907.9365724,0.00033255,7]
[422950512,1779667862000,-177.0,0.00033947,30]
[422950494,1779667862000,-905.15477666,0.00033255,2]
[422950497,1779667862000,-1773.0109293,0.00033255,7]
[422950498,1779667862000,-2648.22433182,0.00033324,7]
[422950499,1779667862000,-996.21134489,0.00033324,7]
[422950502,1779667862000,-1233.22600463,0.000335,2]
[422950503,1779667862000,-6219.73,0.000335,14]
[422950501,1779667862000,-773.01,0.000334,30]
[422950500,1779667862000,-936.96,0.000334,30]
[422950505,1779667862000,-221.3825,0.00033605,13]
[422950508,1779667862000,-2000.0,0.000339,120]
[422950511,1779667862000,-494.0,0.00033947,30]
[422950507,1779667862000,-158.85111946,0.000338,120]
[422950510,1779667862000,-506.17,0.00033929,30]
[422950504,1779667862000,-2235.9120095,0.00033527,2]
[422950506,1779667862000,-222.795,0.00033605,13]
[422950509,1779667862000,-200.0,0.00033901,2]
[422950559,1779667863000,-5099.51,0.00034468,30]
[422950557,1779667863000,-337.81,0.00034331,30]
[422950558,1779667863000,-150.0,0.00034368,120]
[422950555,1779667863000,-936.96,0.000343,30]
[422950560,1779667863000,-194.012164,0.00034468,7]
[422950563,1779667863000,-194.012172,0.00034468,7]
[422950561,1779667863000,-194.012164,0.00034468,7]
[422950564,1779667863000,-1300.1504044,0.00034517,7]
[422950562,1779667863000,-194.012164,0.00034468,7]
[422950568,1779667863000,-9086.12,0.00034544,60]
[422950566,1779667863000,-1143.37182144,0.00034517,7]
[422950571,1779667863000,-754.29,0.00034544,60]
[422950573,1779667863000,-1083.16964713,0.00034604,7]
[422950575,1779667863000,-1705.66659332,0.00034604,7]
[422950567,1779667863000,-1068.21741465,0.00034517,7]
[422950569,1779667863000,-1019.79,0.00034544,60]
[422950570,1779667863000,-297.67,0.00034544,60]
[422950556,1779667863000,-6219.73,0.000343,14]
[422950565,1779667863000,-2280.37085179,0.00034517,7]
[422950554,1779667863000,-506.0,0.00034262,17]
[422950534,1779667863000,-519.0,0.00034226,2]
[422950547,1779667863000,-162.215404,0.0003424,7]
[422950533,1779667863000,-773.01,0.000342,30]
[422950532,1779667863000,-1467.71076691,0.000342,30]
[422950536,1779667863000,-3635.0,0.00034226,2]
[422950540,1779667863000,-321.862122,0.0003424,7]
[422950539,1779667863000,-151.0,0.0003424,7]
[422950537,1779667863000,-500.0,0.0003424,60]
[422950574,1779667863000,-1198.6938819,0.00034604,7]
[422950535,1779667863000,-1224.0,0.00034226,2]
[422950542,1779667863000,-321.862122,0.0003424,7]
[422950541,1779667863000,-321.862122,0.0003424,7]
[422950543,1779667863000,-321.862122,0.0003424,7]
[422950548,1779667863000,-158.25435,0.0003424,7]
[422950552,1779667863000,-151.0,0.0003424,7]
[422950545,1779667863000,-162.215414,0.0003424,7]
[422950549,1779667863000,-158.25435,0.0003424,7]
[422950553,1779667863000,-2000.0,0.00034247,30]
[422950551,1779667863000,-158.254344,0.0003424,7]
[422950546,1779667863000,-162.215414,0.0003424,7]
[422950550,1779667863000,-158.25435,0.0003424,7]
[422950544,1779667863000,-162.215414,0.0003424,7]
[422950572,1779667863000,-1321.32795627,0.00034604,7]
[422950538,1779667863000,-900.0,0.0003424,60]
[422950576,1779667863000,-1059.25933447,0.00034604,7]
[422950599,1779667863000,-293.0,0.0003495,25]
[422950603,1779667863000,-160.90054407,0.00034988,30]
[422950600,1779667863000,-221.3825,0.00034975,13]
[422950607,1779667863000,-155.0,0.00034988,30]
[422950608,1779667863000,-435.0,0.00034988,30]
[422950604,1779667863000,-162.0,0.00034988,30]
[422950606,1779667863000,-158.0,0.00034988,30]
[422950605,1779667863000,-395.0,0.00034988,30]
[422950610,1779667863000,-152.0,0.00034988,30]
[422950609,1779667863000,-155.0,0.00034988,30]
[422950613,1779667863000,-162.78857742,0.00035,30]
[422950611,1779667863000,-150.0,0.00035,2]
[422950614,1779667863000,-172081.98636019,0.00035,4]
[422950616,1779667863000,-185.70394869,0.00035,120]
[422950615,1779667863000,-1952.4106499,0.00035,2]
[422950619,1779667863000,-44466.17,0.00035,15]
[422950618,1779667863000,-526.0,0.00035,5]
[422950617,1779667863000,-2790.50544696,0.00035,10]
[422950577,1779667863000,-1056.0139061,0.00034604,2]
[422950602,1779667863000,-153.0,0.00034988,30]
[422950601,1779667863000,-222.795,0.00034975,13]
[422950612,1779667863000,-4759.15071758,0.00035,2]
[422950597,1779667863000,-153.0,0.00034947,30]
[422950598,1779667863000,-172.209743,0.0003495,25]
[422950580,1779667863000,-2068.51275085,0.00034604,7]